[Event "Djerba Festival Open-B 2025"]
[Site "Djerba"]
[Date "2025.02.21"]
[Round "6.3"]
[White "Marceil, Jean"]
[Black "Lebret, Jean-Michel"]
[Result "1-0"]
[Annotator "RC"]
[ECO "D32"]
[WhiteElo "1901"]
[BlackElo "1995"]
[PlyCount "72"]
[EventDate "2025.02.15"]
[EventType "swiss"]
[EventCountry "TUN"]
[SourceTitle "playchess.com"]
[Source "ChessBase"]
[SourceQuality "1"]
[TimeControl "5400+30"]

1. d4 {[%emt 0:00:13]} d5 {[%emt 0:00:17]} 2. c4 {[%emt 0:00:19]} e6 {[%emt 0:00:07]} 3. Nc3 {[%emt 0:00:13]} c5 {[%emt 0:00:17]} 4. cxd5 {[%emt 0:04:12]} exd5 {[%emt 0:01:18]} 5. Nf3 {[%emt 0:00:26]} Nc6 {[%emt 0:00:18]} 6. e3 {[%emt 0:08:51]} Nf6 {[%emt 0:01:27]} 7. Be2 {[%emt 0:00:21]} Be7 {[%emt 0:00:28]} 8. O-O {[%emt 0:00:11]} O-O {[%emt 0:00:09]} 9. b3 {[%emt 0:02:20]} Ne4 {[%emt 0:08:13]} 10. Bb2 {[%emt 0:05:17]} Bf6 {[%emt 0:01:35]} 11. Na4 {[%emt 0:04:42]} Bg4 {[%emt 0:08:33]} 12. Ne5 {[%emt 0:11:09]} Bxe2 {[%emt 0:04:52]} 13. Qxe2 {[%emt 0:06:14]} cxd4 {[%emt 0:09:26]} 14. exd4 {[%emt 0:06:51]} Re8 {[%emt 0:15:36]} 15. Rac1 {[%emt 0:17:17]} Rc8 {[%emt 0:11:38]} 16. Qb5 {[%emt 0:08:54]} Nxe5 {[%emt 0:28:41]} 17. dxe5 {[%emt 0:01:01]} Bxe5 {[%emt 0:02:23]} 18. Bxe5 {[%emt 0:09:45]} Rxe5 {[%emt 0:00:09]} 19. Qxb7 {[%emt 0:00:26]} Ra8 {[%emt 0:01:50]} 20. Rc7 {[%emt 0:01:53]} Nd6 {[%emt 0:00:39]} 21. Qc6 {[%emt 0:00:25]} Ne8 {[%emt 0:00:45]} 22. Rd7 {[%emt 0:02:51]} Qc8 {[%emt 0:00:55]} 23. Qxc8 {[%emt 0:03:17]} Rxc8 {[%emt 0:00:02]} 24. Rxa7 {[%emt 0:00:34]} Re2 {[%emt 0:00:40]} 25. Nb6 {[%emt 0:00:14]} Rd8 {[%emt 0:00:24]} 26. Rd1 {[%emt 0:01:20]} Rd6 {[%emt 0:00:42]} 27. Kf1 {[%emt 0:01:18]} Re5 {[%emt 0:00:18]} 28. Nc8 {[%emt 0:01:21]} Rd8 {[%emt 0:00:33]} 29. f4 {[%emt 0:00:22]} Re4 {[%emt 0:00:19]} 30. Ne7+ {[%emt 0:00:25]} Kf8 {[%emt 0:00:02]} 31. Nxd5 {[%emt 0:00:38]} Rxf4+ {[%emt 0:00:14]} 32. Nxf4 {[%emt 0:00:13]} Rd5 {[%emt 0:03:40]} 33. Rd2 Rxd2 {[%emt 0:00:00]} 34. Nd3 {[%emt 0:00:41]} f6 {[%emt 0:00:00]} 35. a4 {[%emt 0:00:12]} Nd6 {[%emt 0:00:00]} 36. Nc5 {[%emt 0:02:06]} Ra2 {[%emt 0:02:00]} 1-0

[Event "Djerba Festival Open-B 2025"]
[Site "Djerba"]
[Date "2025.02.21"]
[Round "6.4"]
[White "Ajbara Jamal"]
[Black "Bensadi, Lotfi"]
[Result "1/2-1/2"]
[Annotator "RC"]
[ECO "E13"]
[WhiteElo "1898"]
[BlackElo "1971"]
[PlyCount "95"]
[EventDate "2025.02.15"]
[EventType "swiss"]
[EventCountry "TUN"]
[SourceTitle "playchess.com"]
[Source "ChessBase"]
[SourceQuality "1"]
[TimeControl "5400+30"]

1. d4 {[%emt 0:00:37]} Nf6 {[%emt 0:02:51]} 2. Nf3 {[%emt 0:00:31]} e6 {[%emt 0:00:09]} 3. c4 {[%emt 0:00:15]} Bb4+ {[%emt 0:00:07]} 4. Nc3 {[%emt 0:00:40]} b6 {[%emt 0:02:30]} 5. Bg5 {[%emt 0:01:15]} Bb7 {[%emt 0:00:56]} 6. e3 {[%emt 0:00:41]} h6 {[%emt 0:00:47]} 7. Bh4 {[%emt 0:00:06]} g5 {[%emt 0:06:44]} 8. Bg3 {[%emt 0:01:06]} Bxc3+ {[%emt 0:02:16]} 9. bxc3 {[%emt 0:00:32]} d6 {[%emt 0:01:30]} 10. Bd3 {[%emt 0:06:18]} Nbd7 {[%emt 0:01:15]} 11. a4 {[%emt 0:03:16]} Qe7 {[%emt 0:10:14]} 12. a5 {[%emt 0:05:31]} O-O {[%emt 0:10:01]} 13. O-O {[%emt 0:06:57]} e5 {[%emt 0:15:03]} 14. Bf5 {[%emt 0:04:27]} Be4 {[%emt 0:01:29]} 15. Bxd7 {[%emt 0:07:42]} Nxd7 {[%emt 0:01:04]} 16. Nd2 {[%emt 0:01:13]} Bd3 {[%emt 0:03:19]} 17. Re1 {[%emt 0:00:46]} f5 {[%emt 0:02:08]} 18. Qh5 {[%emt 0:07:49]} Kg7 {[%emt 0:02:50]} 19. f4 {[%emt 0:01:01]} gxf4 {[%emt 0:11:27]} 20. exf4 {[%emt 0:01:18]} e4 {[%emt 0:00:10]} 21. Re3 {[%emt 0:00:55]} Qf7 {[%emt 0:00:30]} 22. Qh3 {[%emt 0:02:14]} Kh7 {[%emt 0:10:09]} 23. Bh4 {[%emt 0:02:21]} Rg8 {[%emt 0:00:18]} 24. Bg5 {[%emt 0:06:17]} Rg6 {[%emt 0:00:47]} 25. axb6 {[%emt 0:04:13]} cxb6 {[%emt 0:00:07]} 26. Rae1 {[%emt 0:01:05]} Kg7 {[%emt 0:01:52]} 27. Bh4 {[%emt 0:00:35]} Re8 {[%emt 0:00:57]} 28. d5 {[%emt 0:03:08]} Nc5 {[%emt 0:01:33]} 29. Bf2 {[%emt 0:08:26]} a5 {[%emt 0:03:31]} 30. Nf3 {[%emt 0:00:18]} Bxc4 {[%emt 0:01:47]} 31. Nh4 {[%emt 0:03:22]} Rg4 {[%emt 0:00:18]} 32. Rg3 {[%emt 0:03:39]} h5 {[%emt 0:00:17]} 33. Bd4+ {[%emt 0:00:33]} Kg8 {[%emt 0:04:00]} 34. Rxg4+ {[%emt 0:01:26]} hxg4 {[%emt 0:00:30]} 35. Qg3 {[%emt 0:00:41]} a4 {[%emt 0:01:20]} 36. h3 {[%emt 0:00:11]} Qh5 {[%emt 0:00:37]} 37. Re3 {[%emt 0:02:27]} a3 {[%emt 0:02:00]} 38. hxg4 {[%emt 0:00:16]} fxg4 {[%emt 0:00:38]} 39. f5 {[%emt 0:02:35]} a2 {[%emt 0:00:28]} 40. Re1 {[%emt 0:00:19]} Nd3 {[%emt 0:01:27]} 41. Qxd6 {[%emt 0:00:59]} Nxe1 {[%emt 0:00:27]} 42. Qf6 {[%emt 0:00:13]} Qh7 {[%emt 0:00:36]} 43. Qg5+ {[%emt 0:00:24]} Kf7 {[%emt 0:00:06]} 44. Qf6+ {[%emt 0:00:27]} Kg8 {[%emt 0:00:00]} 45. Qg5+ {[%emt 0:00:40]} Kf7 {[%emt 0:00:01]} 46. Qf6+ {[%emt 0:00:11]} Kg8 {[%emt 0:00:01]} 47. Qg5+ {[%emt 0:00:01]} Kf8 {[%emt 0:02:53]} 48. Qf6+ {[%emt 0:14:33]} 1/2-1/2

[Event "Djerba Festival Open-B 2025"]
[Site "Djerba"]
[Date "2025.02.21"]
[Round "6.5"]
[White "Kole, Arda"]
[Black "Dejardin, Gregoire"]
[Result "1-0"]
[Annotator "RC"]
[ECO "B12"]
[WhiteElo "1848"]
[BlackElo "1932"]
[PlyCount "86"]
[EventDate "2025.02.15"]
[EventType "swiss"]
[EventCountry "TUN"]
[SourceTitle "playchess.com"]
[Source "ChessBase"]
[SourceQuality "1"]
[TimeControl "5400+30"]

1. e4 {[%emt 0:01:54]} c6 {[%emt 0:00:05]} 2. d4 {[%emt 0:00:13]} d5 {[%emt 0:00:04]} 3. e5 {[%emt 0:00:13]} Bf5 {[%emt 0:00:07]} 4. h4 {[%emt 0:00:09]} h5 {[%emt 0:00:07]} 5. Bd3 {[%emt 0:01:17]} Bxd3 {[%emt 0:00:09]} 6. Qxd3 {[%emt 0:00:08]} e6 {[%emt 0:00:04]} 7. Nf3 {[%emt 0:01:24]} Ne7 {[%emt 0:01:43]} 8. Bg5 {[%emt 0:05:44]} Qb6 {[%emt 0:00:31]} 9. c4 {[%emt 0:11:35]} dxc4 {[%emt 0:03:00]} 10. Qxc4 {[%emt 0:06:03]} Qa6 {[%emt 0:00:58]} 11. b3 {[%emt 0:03:44]} Nf5 {[%emt 0:09:08]} 12. O-O {[%emt 0:04:00]} Qxc4 {[%emt 0:10:28]} 13. bxc4 {[%emt 0:00:07]} Na6 {[%emt 0:00:09]} 14. Nc3 {[%emt 0:05:27]} Be7 {[%emt 0:01:39]} 15. Rab1 {[%emt 0:09:52]} b6 {[%emt 0:03:10]} 16. d5 {[%emt 0:03:38]} Bb4 {[%emt 0:05:38]} 17. Ne2 {[%emt 0:03:43]} cxd5 {[%emt 0:03:11]} 18. cxd5 {[%emt 0:00:12]} exd5 {[%emt 0:01:04]} 19. Rfd1 {[%emt 0:01:39]} d4 {[%emt 0:16:15]} 20. Nfxd4 {[%emt 0:04:56]} Nxd4 {[%emt 0:00:14]} 21. Nxd4 {[%emt 0:00:32]} O-O {[%emt 0:01:44]} 22. Nc6 {[%emt 0:03:46]} Bc5 {[%emt 0:42:02]} 23. Rd7 {[%emt 0:01:00]} Nb8 {[%emt 0:00:00]} 24. Nxb8 {[%emt 0:03:34]} Rfxb8 {[%emt 0:00:00]} 25. Kh2 {[%emt 0:03:32]} Re8 {[%emt 0:00:00]} 26. f4 {[%emt 0:01:45]} Re6 {[%emt 0:00:00]} 27. Rbd1 {[%emt 0:02:38]} f6 {[%emt 0:00:00]} 28. exf6 {[%emt 0:00:25]} gxf6 {[%emt 0:00:00]} 29. f5 {[%emt 0:01:45]} Rc6 {[%emt 0:00:00]} 30. Bc1 {[%emt 0:06:51]} a5 {[%emt 0:00:00]} 31. Bf4 {[%emt 0:10:24]} Re8 {[%emt 0:00:00]} 32. R1d3 {[%emt 0:01:18]} Bf8 {[%emt 0:00:38]} 33. Rg3+ {[%emt 0:00:45]} Kh8 {[%emt 0:00:07]} 34. Rg6 {[%emt 0:01:26]} Rc4 {[%emt 0:02:41]} 35. Bg3 {[%emt 0:01:00]} Rg4 {[%emt 0:00:54]} 36. Rxf6 {[%emt 0:00:48]} Bg7 {[%emt 0:00:20]} 37. Rff7 {[%emt 0:00:58]} Re3 {[%emt 0:00:54]} 38. Bf2 {[%emt 0:00:14]} Re2 {[%emt 0:01:11]} 39. f6 {[%emt 0:00:34]} Bh6 {[%emt 0:00:53]} 40. Rh7+ {[%emt 0:00:26]} Kg8 {[%emt 0:00:05]} 41. f7+ {[%emt 0:00:21]} Kxh7 {[%emt 0:00:54]} 42. f8=Q+ {[%emt 0:00:18]} Bg7 {[%emt 0:00:20]} 43. Qf5+ {[%emt 0:00:12]} Kh8 {[%emt 0:01:33]} 1-0

[Event "Djerba Festival Open-B 2025"]
[Site "Djerba"]
[Date "2025.02.21"]
[Round "6.6"]
[White "Gely, Bernard"]
[Black "Tahir, Abderrahmane"]
[Result "0-1"]
[Annotator "NA RC"]
[ECO "E95"]
[WhiteElo "1928"]
[BlackElo "1891"]
[PlyCount "55"]
[EventDate "2025.02.15"]
[EventType "swiss"]
[EventCountry "TUN"]
[SourceTitle "playchess.com"]
[Source "ChessBase"]
[SourceQuality "1"]
[TimeControl "5400+30"]

1. d4 {[%emt 1:31:00]} g6 {[%emt 1:31:00]} 2. c4 {[%emt 0:00:30]} Nf6 {[%emt 0:00:30]} 3. Nc3 {[%emt 0:00:30]} Bg7 {[%emt 0:00:30]} 4. e4 {[%emt 0:00:30]} d6 {[%emt 0:00:30]} 5. Bd3 {[%emt 0:00:30]} Nbd7 {[%emt 0:00:30]} 6. Nge2 {[%emt 0:00:30]} e5 {[%emt 0:00:30]} 7. O-O {[%emt 0:00:30]} exd4 {[%emt 0:00:30]} 8. Nxd4 {[%emt 0:00:30]} Nc5 {[%emt 0:00:30]} 9. Re1 {[%emt 0:00:30]} O-O {[%emt 0:00:30]} 10. Bf1 {[%emt 0:00:30]} Ne6 {[%emt 0:00:30]} 11. f3 {[%emt 0:00:30]} Nxd4 {[%emt 0:00:30]} 12. Qxd4 {[%emt 0:00:30]} Re8 {[%emt 0:00:30]} 13. Be3 {[%emt 0:00:30]} Nxe4 {[%emt 0:00:30]} 14. Qd3 {[%emt 0:00:30]} Nxc3 {[%emt 0:00:30]} 15. bxc3 {[%emt 0:00:30]} Bf5 {[%emt 0:00:30]} 16. Qd2 {[%emt 0:00:30]} h5 {[%emt 0:00:30]} 17. Rac1 {[%emt 0:00:30]} b6 {[%emt 0:00:30]} 18. Bd4 {[%emt 0:00:30]} Qd7 {[%emt 0:00:30]} 19. Qg5 {[%emt 0:00:30]} Rxe1 {[%emt 0:00:30]} 20. Rxe1 Re8 {[%emt 0:00:30]} 21. Rxe8+ {[%emt 0:01:00]} Qxe8 {[%emt 0:00:30]} 22. g4 {[%emt 0:00:30]} hxg4 {[%emt 0:00:30]} 23. fxg4 {[%emt 0:00:30]} Bb1 {[%emt 0:00:30]} 24. h4 {[%emt 0:00:30]} c5 {[%emt 0:00:30]} 25. Bxg7 {[%emt 0:00:30]} Kxg7 {[%emt 0:00:30]} 26. h5 {[%emt 0:00:30]} Qe5 {[%emt 0:00:30]} 27. Qxe5+ {[%emt 0:00:30]} dxe5 {[%emt 0:00:30]} 28. a3 {[%emt 0:00:30]} 0-1

[Event "Djerba Festival Open-B 2025"]
[Site "Djerba"]
[Date "2025.02.21"]
[Round "6.7"]
[White "Charfeddine, Akram"]
[Black "Schmittheisler, Guillaume"]
[Result "0-1"]
[Annotator "RC"]
[ECO "C01"]
[WhiteElo "1915"]
[BlackElo "1888"]
[PlyCount "90"]
[EventDate "2025.02.15"]
[EventType "swiss"]
[EventCountry "TUN"]
[SourceTitle "playchess.com"]
[Source "ChessBase"]
[SourceQuality "1"]
[TimeControl "5400+30"]

1. e4 {[%emt 0:04:07]} e6 {[%emt 0:00:19]} 2. d4 {[%emt 0:00:12]} d5 {[%emt 0:00:04]} 3. exd5 {[%emt 0:00:10]} exd5 {[%emt 0:00:03]} 4. Bd3 {[%emt 0:00:10]} Bd6 {[%emt 0:01:00]} 5. c3 {[%emt 0:04:14]} Nf6 {[%emt 0:01:08]} 6. Nf3 {[%emt 0:08:08]} O-O {[%emt 0:00:22]} 7. O-O {[%emt 0:04:17]} c6 {[%emt 0:01:44]} 8. Bg5 {[%emt 0:05:31]} Bg4 {[%emt 0:03:42]} 9. Nbd2 {[%emt 1:08:11]} Nbd7 {[%emt 0:00:18]} 10. Qc2 {[%emt 0:00:00]} Qc7 {[%emt 0:02:45]} 11. Rfe1 {[%emt 0:00:00]} Rfe8 {[%emt 0:05:53]} 12. h3 {[%emt 0:00:00]} Bh5 {[%emt 0:01:48]} 13. g4 {[%emt 0:00:00]} Bg6 {[%emt 0:00:14]} 14. Bxg6 {[%emt 0:00:00]} hxg6 {[%emt 0:00:34]} 15. Kg2 {[%emt 0:00:00]} Nf8 {[%emt 0:08:31]} 16. Rxe8 {[%emt 0:00:00]} Rxe8 {[%emt 0:00:27]} 17. Re1 {[%emt 0:00:00]} Ne6 {[%emt 0:06:08]} 18. Bxf6 {[%emt 0:00:00]} Nf4+ {[%emt 0:01:41]} 19. Kf1 {[%emt 0:00:00]} Rxe1+ {[%emt 0:00:23]} 20. Kxe1 {[%emt 0:00:00]} gxf6 {[%emt 0:00:22]} 21. Ng1 {[%emt 0:00:00]} c5 {[%emt 0:17:00]} 22. Ndf3 {[%emt 0:00:00]} c4 {[%emt 0:02:27]} 23. Kf1 {[%emt 0:00:00]} Qe7 {[%emt 0:02:19]} 24. Ne1 {[%emt 0:01:11]} Kg7 {[%emt 0:03:19]} 25. Ng2 {[%emt 0:02:25]} Nd3 {[%emt 0:01:48]} 26. b4 {[%emt 0:00:41]} b5 {[%emt 0:28:58]} 27. Qe2 {[%emt 0:01:39]} Bxb4 {[%emt 0:04:07]} 28. cxb4 {[%emt 0:00:24]} Qxb4 {[%emt 0:00:43]} 29. Qc2 {[%emt 0:00:30]} a5 {[%emt 0:01:39]} 30. Ne2 {[%emt 0:00:43]} Qd6 {[%emt 0:00:56]} 31. f4 {[%emt 0:00:55]} Qe6 {[%emt 0:00:58]} 32. Qd2 {[%emt 0:00:22]} b4 {[%emt 0:00:41]} 33. Nc1 {[%emt 0:01:21]} Nxc1 {[%emt 0:01:16]} 34. Qxc1 {[%emt 0:00:02]} Qe4 {[%emt 0:00:15]} 35. g5 {[%emt 0:00:54]} Qd3+ {[%emt 0:00:47]} 36. Ke1 {[%emt 0:00:25]} Qxd4 {[%emt 0:00:25]} 37. h4 {[%emt 0:01:07]} b3 {[%emt 0:01:16]} 38. axb3 {[%emt 0:00:32]} cxb3 {[%emt 0:00:04]} 39. Qd2 {[%emt 0:00:33]} Qg1+ {[%emt 0:00:16]} 40. Ke2 {[%emt 0:00:52]} Qxg2+ {[%emt 0:00:10]} 41. Kd3 {[%emt 0:00:12]} Qxd2+ {[%emt 0:00:39]} 42. Kxd2 {[%emt 0:00:07]} fxg5 {[%emt 0:00:40]} 43. hxg5 {[%emt 0:00:14]} d4 {[%emt 0:00:15]} 44. Kd3 {[%emt 0:00:26]} a4 {[%emt 0:00:38]} 45. Kxd4 {[%emt 0:00:13]} b2 {[%emt 0:00:10]} 0-1

[Event "Djerba Festival Open-B 2025"]
[Site "Djerba"]
[Date "2025.02.21"]
[Round "6.8"]
[White "Skhiri Youssef"]
[Black "Algadari, Mahmod"]
[Result "1-0"]
[Annotator "RC"]
[ECO "A16"]
[WhiteElo "1808"]
[BlackElo "1909"]
[PlyCount "98"]
[EventDate "2025.02.15"]
[EventType "swiss"]
[EventCountry "TUN"]
[SourceTitle "playchess.com"]
[Source "ChessBase"]
[SourceQuality "1"]
[TimeControl "5400+30"]

1. c4 {[%emt 0:00:08]} Nf6 {[%emt 0:07:11]} 2. Nc3 {[%emt 0:00:15]} d5 {[%emt 0:01:06]} 3. cxd5 {[%emt 0:00:50]} Nxd5 {[%emt 0:00:03]} 4. e4 {[%emt 0:01:37]} Nxc3 {[%emt 0:00:14]} 5. bxc3 {[%emt 0:00:34]} g6 {[%emt 0:00:29]} 6. Bc4 {[%emt 0:02:41]} Bg7 {[%emt 0:00:22]} 7. Nf3 {[%emt 0:01:46]} O-O {[%emt 0:04:31]} 8. O-O {[%emt 0:09:34]} c5 {[%emt 0:15:04]} 9. Rb1 {[%emt 0:05:14]} Nc6 {[%emt 0:04:51]} 10. h3 {[%emt 0:13:54]} Rb8 {[%emt 0:12:19]} 11. Qc2 {[%emt 0:08:54]} e5 {[%emt 0:08:32]} 12. d3 {[%emt 0:04:22]} h6 {[%emt 0:00:28]} 13. Be3 {[%emt 0:03:43]} Qe7 {[%emt 0:07:03]} 14. Bd5 {[%emt 0:08:24]} Bd7 {[%emt 0:03:24]} 15. Qc1 {[%emt 0:00:44]} Kh7 {[%emt 0:00:27]} 16. Re1 {[%emt 0:04:21]} b6 {[%emt 0:00:06]} 17. Qc2 {[%emt 0:04:02]} Rbc8 {[%emt 0:01:12]} 18. a3 {[%emt 0:02:45]} f5 {[%emt 0:07:03]} 19. exf5 {[%emt 0:02:24]} Bxf5 {[%emt 0:00:20]} 20. Qa4 {[%emt 0:03:31]} Qf6 {[%emt 0:05:23]} 21. Bxc6 {[%emt 0:03:56]} Rxc6 {[%emt 0:01:01]} 22. Nxe5 {[%emt 0:05:24]} b5 {[%emt 0:04:18]} 23. Qxb5 {[%emt 0:05:22]} Rb6 {[%emt 0:00:57]} 24. Nd7 {[%emt 0:01:47]} Bxd7 {[%emt 0:06:47]} 25. Qxd7 {[%emt 0:00:04]} Rf7 {[%emt 0:00:02]} 26. Qd5 {[%emt 0:02:20]} Bf8 {[%emt 0:07:30]} 27. Bxc5 {[%emt 0:01:50]} Bxc5 {[%emt 0:00:32]} 28. Qxc5 {[%emt 0:00:18]} Rc6 {[%emt 0:01:03]} 29. Qd4 {[%emt 0:03:45]} Qf5 {[%emt 0:02:42]} 30. Re5 {[%emt 0:00:29]} Qc8 {[%emt 0:00:00]} 31. c4 {[%emt 0:01:02]} Rd7 {[%emt 0:00:00]} 32. Qe3 {[%emt 0:00:00]} Qf8 {[%emt 0:00:00]} 33. Re1 {[%emt 0:00:24]} Rf7 {[%emt 0:00:16]} 34. Re7 {[%emt 0:00:34]} Ra6 {[%emt 0:00:15]} 35. Rxf7+ {[%emt 0:00:31]} Qxf7 {[%emt 0:00:01]} 36. Qe7 {[%emt 0:00:18]} Kg7 {[%emt 0:00:11]} 37. Qxf7+ {[%emt 0:00:12]} Kxf7 {[%emt 0:00:01]} 38. Ra1 {[%emt 0:00:30]} Ke6 {[%emt 0:00:03]} 39. Kf1 {[%emt 0:00:37]} Ke5 {[%emt 0:00:00]} 40. Ke2 {[%emt 0:00:26]} Kd4 {[%emt 0:00:01]} 41. Kd2 {[%emt 0:00:45]} Rf6 {[%emt 0:00:31]} 42. f3 {[%emt 0:00:30]} Ra6 {[%emt 0:00:12]} 43. a4 {[%emt 0:00:36]} Ra5 {[%emt 0:00:08]} 44. h4 {[%emt 0:00:33]} g5 {[%emt 0:00:09]} 45. h5 {[%emt 0:00:31]} a6 {[%emt 0:01:25]} 46. g4 {[%emt 0:00:23]} Ke5 {[%emt 0:01:24]} 47. Ke3 {[%emt 0:00:25]} Kd6 {[%emt 0:00:46]} 48. d4 {[%emt 0:00:04]} Ke6 {[%emt 0:00:14]} 49. Kd3 {[%emt 0:00:04]} Rf5 {[%emt 0:04:23]} 1-0

[Event "Djerba Festival Open-B 2025"]
[Site "Djerba"]
[Date "2025.02.21"]
[Round "6.9"]
[White "Guirat, Saber"]
[Black "Falezan, Arnaud"]
[Result "1-0"]
[Annotator "NA RC"]
[ECO "E04"]
[WhiteElo "1956"]
[BlackElo "1662"]
[PlyCount "58"]
[EventDate "2025.02.15"]
[EventType "swiss"]
[EventCountry "TUN"]
[SourceTitle "playchess.com"]
[Source "ChessBase"]
[SourceQuality "1"]
[TimeControl "5400+30"]

1. Nf3 {[%emt 1:31:00]} Nf6 {[%emt 1:31:00]} 2. d4 {[%emt 0:00:30]} d5 {[%emt 0:00:30]} 3. c4 {[%emt 0:00:30]} e6 {[%emt 0:00:30]} 4. g3 {[%emt 0:00:30]} dxc4 {[%emt 0:00:30]} 5. Bg2 {[%emt 0:00:30]} Bb4+ {[%emt 0:00:30]} 6. Bd2 {[%emt 0:00:30]} Be7 {[%emt 0:00:30]} 7. O-O {[%emt 0:00:30]} c5 {[%emt 0:00:30]} 8. dxc5 {[%emt 0:00:30]} Bxc5 {[%emt 0:00:30]} 9. Qa4+ {[%emt 0:00:30]} Bd7 {[%emt 0:00:30]} 10. Qxc4 {[%emt 0:00:30]} Qb6 {[%emt 0:00:30]} 11. Nc3 {[%emt 0:00:30]} Na6 {[%emt 0:00:30]} 12. Na4 {[%emt 0:00:30]} Qb5 {[%emt 0:00:30]} 13. Qxb5 {[%emt 0:00:30]} Bxb5 {[%emt 0:00:30]} 14. Nxc5 {[%emt 0:00:30]} Nxc5 {[%emt 0:00:30]} 15. Nd4 {[%emt 0:00:30]} Rd8 {[%emt 0:00:30]} 16. Be3 {[%emt 0:00:30]} Ba6 {[%emt 0:00:30]} 17. b4 {[%emt 0:00:30]} Nce4 {[%emt 0:00:30]} 18. b5 {[%emt 0:00:30]} Rxd4 {[%emt 0:00:30]} 19. Bxd4 {[%emt 0:00:30]} Bxb5 {[%emt 0:00:30]} 20. Bxa7 {[%emt 0:00:30]} O-O {[%emt 0:00:30]} 21. Bd4 {[%emt 0:00:30]} Rd8 {[%emt 0:00:30]} 22. Bxf6 {[%emt 0:00:30]} Nxf6 {[%emt 0:00:30]} 23. Bxb7 {[%emt 0:00:30]} Bxe2 {[%emt 0:00:30]} 24. Rfc1 {[%emt 0:00:30]} Rb8 {[%emt 0:00:30]} 25. Rc8+ {[%emt 0:00:30]} Rxc8 {[%emt 0:00:30]} 26. Bxc8 {[%emt 0:00:30]} Bf3 {[%emt 0:00:30]} 27. a4 {[%emt 0:00:30]} Nd5 {[%emt 0:00:30]} 28. Bb7 {[%emt 0:00:30]} Kf8 {[%emt 0:00:30]} 29. a5 {[%emt 0:00:30]} e5 {[%emt 0:00:30]} 1-0

[Event "Djerba Festival Open-B 2025"]
[Site "Djerba"]
[Date "2025.02.21"]
[Round "6.10"]
[White "Nassr, Lina"]
[Black "Cornileau, Raphael"]
[Result "0-1"]
[Annotator "RC"]
[ECO "D05"]
[WhiteElo "1934"]
[BlackElo "1864"]
[PlyCount "84"]
[EventDate "2025.02.15"]
[EventType "swiss"]
[EventCountry "TUN"]
[SourceTitle "playchess.com"]
[Source "ChessBase"]
[SourceQuality "1"]
[TimeControl "5400+30"]

1. e3 {[%emt 0:00:02]} Nf6 {[%emt 0:11:37]} 2. Nf3 {[%emt 0:00:18]} e6 {[%emt 0:00:12]} 3. d4 {[%emt 0:00:23]} d5 {[%emt 0:00:06]} 4. Bd3 {[%emt 0:00:11]} Bd6 {[%emt 0:00:23]} 5. O-O {[%emt 0:00:23]} O-O {[%emt 0:00:04]} 6. b3 {[%emt 0:01:08]} Nbd7 {[%emt 0:00:07]} 7. Bb2 {[%emt 0:00:12]} c5 {[%emt 0:00:21]} 8. Nbd2 {[%emt 0:00:50]} b6 {[%emt 0:01:40]} 9. Ne5 {[%emt 0:01:25]} Bb7 {[%emt 0:00:30]} 10. Qe2 {[%emt 0:04:53]} Re8 {[%emt 0:04:58]} 11. f4 {[%emt 0:12:50]} Ne4 {[%emt 0:05:43]} 12. Rad1 {[%emt 0:12:50]} f5 {[%emt 0:05:10]} 13. Nxe4 {[%emt 0:19:36]} fxe4 {[%emt 0:00:52]} 14. Ba6 {[%emt 0:04:32]} Bxa6 {[%emt 0:03:23]} 15. Qxa6 {[%emt 0:00:03]} Nf6 {[%emt 0:03:23]} 16. Qe2 {[%emt 0:06:34]} Rc8 {[%emt 0:03:43]} 17. c4 {[%emt 0:02:36]} Qe7 {[%emt 0:00:45]} 18. dxc5 {[%emt 0:06:32]} Bxc5 {[%emt 0:01:09]} 19. g4 {[%emt 0:05:00]} Red8 {[%emt 0:01:53]} 20. f5 {[%emt 0:02:17]} exf5 {[%emt 0:01:31]} 21. Rxf5 {[%emt 0:00:26]} Qe6 {[%emt 0:01:53]} 22. Rdf1 {[%emt 0:03:19]} Rf8 {[%emt 0:00:57]} 23. Bd4 {[%emt 0:08:11]} Be7 {[%emt 0:02:15]} 24. cxd5 {[%emt 0:03:24]} Nxd5 {[%emt 0:02:00]} 25. Qg2 {[%emt 0:00:10]} Nc3 {[%emt 0:03:02]} 26. Qb2 {[%emt 0:02:46]} Nb5 {[%emt 0:02:54]} 27. Qg2 {[%emt 0:00:04]} Nd6 {[%emt 0:01:33]} 28. Rxf8+ {[%emt 0:00:32]} Bxf8 {[%emt 0:00:21]} 29. h3 {[%emt 0:01:08]} Be7 {[%emt 0:00:44]} 30. g5 {[%emt 0:01:10]} Rc7 {[%emt 0:11:27]} 31. h4 {[%emt 0:00:17]} Nf5 {[%emt 0:01:39]} 32. Qf2 {[%emt 0:01:45]} Nd6 {[%emt 0:01:06]} 33. Qf4 {[%emt 0:00:23]} Rc2 {[%emt 0:01:02]} 34. Rf2 {[%emt 0:00:32]} Rc8 {[%emt 0:02:22]} 35. Qh2 {[%emt 0:00:39]} Rc1+ {[%emt 0:02:04]} 36. Kg2 {[%emt 0:00:27]} Rc7 {[%emt 0:02:58]} 37. Qf4 {[%emt 0:00:15]} Rc8 {[%emt 0:01:04]} 38. Qg3 {[%emt 0:00:38]} Nf5 {[%emt 0:00:44]} 39. Qf4 {[%emt 0:00:12]} Nxd4 {[%emt 0:02:37]} 40. exd4 {[%emt 0:00:07]} Rc3 {[%emt 0:00:04]} 41. Qxe4 {[%emt 0:01:03]} Qh3+ {[%emt 0:00:12]} 42. Kg1 {[%emt 0:00:24]} Rc1+ {[%emt 0:00:08]} 0-1